Cogmind - Beta 16 @@@ ROGUE MODE // 2025.11.18 @ 22:07:23 Player: tthaar Result: Destroyed by G-34 Mercenary with Small Laser Performance ------------- Evolutions (0) 0 Regions Visited (1) 200 Robots Destroyed (12) 60 Value Destroyed (242) 242 Prototype IDs (0) 0 Alien Tech Used (0) 0 Bonus (0) 0 TOTAL SCORE: 502 Bonus ------- None Cogmind --------- Core Integrity 0/250 Matter 300/300 Energy 100/100 System Corruption 0% Temperature Cool (6) Movement Core (150) Ox2 Location -10/Materials Parts ------- > --- POWER (1) -------- (None) > --- PROPULSION (2) --- (None) > --- UTILITY (2) ------ Small Storage Unit > --- WEAPON (2) ------- Mining Claw > --- INVENTORY (8) ---- Ion Engine Light Ion Engine Aluminum Leg Aluminum Leg Seismic Detector Medium Laser Medium Laser Peak State ------------ > --- POWER ------------ Light Ion Engine > --- PROPULSION ------- Wheel Compact Wheel > --- UTILITY ---------- Small Storage Unit Improved Terrain Scanner > --- WEAPON ----------- Medium Laser Light Assault Rifle > --- INVENTORY -------- Ion Engine Aluminum Leg Aluminum Leg Seismic Detector Medium Laser Mining Laser [Rating: 9] Favorites ----------- Power Light Ion Engine Engine Light Ion Engine Propulsion Wheel Wheel Wheel Utility Small Storage Unit Device Sensor Array Storage Small Storage Unit Weapon Light Assault Rifle Energy Gun Medium Laser Ballistic Gun Light Assault Rifle Special Weapon Mining Laser Slashing Weapon Mining Claw Build | -11 -10 ------- Run | Yrd Mat Slots Evolved . | . . Power . | . . Propulsion . | . . Utility . | . . Weapon . | . . Parts Attached 12 | 7 5 Power 1 | 1 . Engine 1 | 1 . Core . | . . Reactor . | . . Propulsion 2 | 2 . Treads . | . . Leg . | . . Wheel 2 | 2 . Hover . | . . Flight . | . . Utility 3 | 1 2 Device 2 | . 2 Storage 1 | 1 . Processor . | . . Hackware . | . . Protection . | . . Artifact . | . . Weapon 6 | 3 3 Energy Gun 2 | 2 . Energy Cannon . | . . Ballistic Gun 1 | 1 . Ballistic Cannon . | . . Launcher . | . . Special Weapon 2 | . 2 Impact Weapon . | . . Slashing Weapon 1 | . 1 Piercing Weapon . | . . Special Melee Weapon . | . . Unidentified Prototypes . | . . Parts Lost 7 | . 7 Power 1 | . 1 Propulsion 2 | . 2 Utility 2 | . 2 Weapon 2 | . 2 Highest Loss Streak 2 | . 2 To Critical Strikes . | . . Average Backups 5 | 4 6 Power 1 | . 1 Propulsion 1 | 1 2 Utility 1 | 1 1 Weapon 1 | . 1 Tool/Special . | . . Unused Backups 5 | . 5 Power 2 | . 2 Propulsion 2 | . 2 Utility 1 | . 1 Weapon . | . . Tool/Special . | . . Average Slot Usage (%) 69 | . 69 Engine 6 | . 6 Wheel 10 | . 10 Device 9 | . 9 Storage 14 | . 14 Ballistic Gun 13 | . 13 Special Weapon 3 | . 3 Slashing Weapon 10 | . 10 Peak Build Rating 9 | 6 9 Average Rating 5 | 5 5 On Entrance 3 | . 6 Avg Prop Armor Cover (%) . | . . Naked Turns . | . . Heaviest Build 12 | 12 12 Greatest Support 26 | 26 26 Greatest Overweight (x) 2 | 2 2 Average Overweight (x) . | . 1 Largest Inventory Capacity 8 | 8 8 Average Capacity 7 | 7 8 Most Carried 7 | 7 7 Average Carried 5 | 4 6 Final Capacity 8 | 8 8 Final Carried 7 | 7 7 Class Distribution -------------------- 100% | Mutant Dominant Class ---------------- Mutant | -10/Materials Resources | -11 -10 ----------- Run | Yrd Mat Matter Collected 326 | 270 56 Remotely . | . . Salvage Created 346 | 70 276 Parts 24 | 8 16 Haulers Intercepted . | . . Recyclers Shooed 1 | 1 . Parts Field Recycled . | . . Retrieved Matter . | . . Parts Self-Destructed . | . . Prevented . | . . Parts Restored . | . . Kills | -11 -10 ------- Run | Yrd Mat Combat Hostiles Destroyed 6 | . 6 Melee 4 | . 4 Guns 1 | . 1 Cannons 1 | . 1 Classes Destroyed 5 | 1 4 Builder 1 | . 1 Tunneler 4 | 3 1 Recycler 1 | . 1 Swarmer 1 | . 1 Grunt 5 | . 5 Best Kill Streak 2 | 1 2 Combat Bots Only 1 | . 1 Max Kills in Single Turn 1 | 1 1 Gunslinging . | . . Exploded . | . . Melee 1 | . 1 Uniques/NPCs Destroyed . | . . Combat | -11 -10 -------- Run | Yrd Mat Hostile Shots Fired 83 | . 83 Missed 19 | . 19 Hits 64 | . 64 Projectile 64 | . 64 Damage Taken 674 | . 674 Core 259 | . 259 Absorbed by Shields . | . . Core Remaining (%) 100 | 100 . Volleys Fired 31 | 6 25 Largest 2 | 2 2 Hottest 120 | 100 120 Shots Fired 42 | 12 30 Gun 31 | 12 19 Cannon . | . . Launcher . | . . Special 11 | . 11 Kinetic 17 | 1 16 Thermal 25 | 11 14 Explosive . | . . Electromagnetic . | . . Robot Hit Streak 9 | 4 9 Robot Miss Streak 4 | 2 4 Penetration Max . | . . Secondary Targets . | . . Shots Hit Robots 46 | 8 38 Core Hits 16 | 4 12 Critical Kills . | . . Critical Parts Destroyed . | . . Critical Strikes 2 | 1 1 Burn 2 | 1 1 Melee Attacks 38 | . 38 Impact . | . . Slashing 38 | . 38 Piercing . | . . Sneak Attacks 5 | . 5 Combat Hostiles . | . . Follow-up Attacks . | . . Damage Inflicted 860 | 97 763 Guns 228 | 97 131 Cannons . | . . Explosions . | . . Melee 536 | . 536 Ramming . | . . Kinetic 102 | 10 92 Thermal 222 | 87 135 Explosive . | . . Electromagnetic . | . . Impact . | . . Slashing 536 | . 536 Piercing . | . . Highest Corruption . | . . Average Corruption . | . . Corruption Purged . | . . Corruption Blocked . | . . Overload Shots . | . . Overflow Damage 35 | . 35 Projectiles . | . . Explosions . | . . Melee 35 | . 35 Knockbacks . | . . Impact . | . . Kinetic . | . . Secondary . | . . Self-Inflicted Damage . | . . Shots . | . . Rammed . | . . Targets Rammed . | . . Kicked . | . . Crushed . | . . Highest Temperature 205 | 117 205 Average Temperature 58 | 44 64 Received Heat Transfer 267 | . 267 Siege Activations . | . . Martial Activations . | . . Shielding Activations . | . . Robots Disrupted . | . . Combat Hostiles . | . . Robots Corrupted . | . . Combat Hostiles . | . . Parts Fried . | . . Impact Corruptions . | . . Robots Melted . | . . Combat Hostiles . | . . Parts Melted 2 | 2 . Heat Transferred 718 | 333 385 Parts Sabotaged . | . . Parts Stolen . | . . Parts Stripped . | . . Power Chain Reactions . | . . Alert | -11 -10 ------- Run | Yrd Mat Maximum Alert Level . | . . Low Security (%) 100 | 100 100 Level 1 . | . . Level 2 . | . . Level 3 . | . . Level 4 . | . . Level 5 . | . . High Security . | . . Max Security . | . . Peak Influence 36 | 5 36 Initial . | . . Average 6 | . 7 Influence Increases 237 | 15 222 Destroy 0b10 Robot/C 120 | . 120 Destroy 0b10 Robot/NC 30 | 15 15 Destroy Leader 20 | . 20 Successful Hack 8 | . 8 Disable Machine 15 | . 15 Destroy Structure 14 | . 14 Lose Combat Pursuer 30 | . 30 Influence Decreases 211 | 15 196 Time Decay 183 | 15 168 Lost Part 28 | . 28 Squads Dispatched 2 | . 2 Investigation . | . . Extermination . | . . Reinforcement 2 | . 2 Assault . | . . Garrison . | . . Intercept . | . . Searches Triggered . | . . Construction Impeded . | . . Haulers Reinforced . | . . Active Scanning Responses . | . . Cargo Convoy Interrupts . | . . Stealth | -11 -10 --------- Run | Yrd Mat Distress Signals . | . . Communications Jammed . | . . Distress Signals . | . . Times Spotted 12 | . 12 Peak Tracking Total 4 | . 4 Tactical Retreats 2 | . 2 Traps | -11 -10 ------- Run | Yrd Mat Traps Triggered . | . . Indirectly . | . . Trap Hack Attempts . | . . Triggered . | . . Disarmed . | . . Reprogrammed . | . . Reused . | . . Traps Extracted . | . . Installed . | . . Triggered . | . . Machines | -11 -10 ---------- Run | Yrd Mat Machines Disabled 1 | . 1 Max in Single Turn 1 | . 1 Machines Repaired . | . . Machines Dismantled . | . . Machines Sabotaged . | . . Overloaded Fab Kills . | . . Hacking | -11 -10 --------- Run | Yrd Mat Machines Accessed 2 | . 2 Terminals 2 | . 2 Fabricators . | . . Repair Stations . | . . Recycling Units . | . . Scanalyzers . | . . Garrison Access . | . . Total Hacks 5 | . 5 Successful 2 | . 2 Failed 3 | . 3 Catastrophic 1 | . 1 Database Lockouts . | . . Manual 4 | . 4 Terminals 5 | . 5 Fabricators . | . . Repair Stations . | . . Recycling Units . | . . Scanalyzers . | . . Garrison Access . | . . Terminal Hacks 2 | . 2 Recall Investigation 1 | . 1 Registered Components 1 | . 1 Fabricator Hacks . | . . Repair Station Hacks . | . . Recycling Unit Hacks . | . . Scanalyzer . | . . Garrison Access Hacks . | . . Unauthorized Hacks . | . . Terminals . | . . Fabricators . | . . Repair Stations . | . . Recycling Units . | . . Scanalyzers . | . . Garrison Access . | . . Data Cores Recovered . | . . Used . | . . Hacking Detections 2 | . 2 Full Trace Events . | . . Feedback Events . | . . Feedback Blocked . | . . Robot Schematics Acquired . | . . Robots Built . | . . Authchips . | . . Time . | . . Total Robot Build Rating . | . . Part Schematics Acquired . | . . Parts Built . | . . Authchips . | . . Time . | . . Total Part Build Rating . | . . Part Studies Acquired . | . . Parts Repaired . | . . Time . | . . Parts Recycled . | . . Recycled Matter . | . . Retrieved Matter . | . . Retrieved Components . | . . Parts Scanalyzed . | . . Part Schematics Acquired . | . . Parts Damaged . | . . Bothacking | -11 -10 ------------ Run | Yrd Mat Used RIF Installer . | . . Robots Hacked . | . . Non-combat . | . . Combat . | . . Robot Hacks Applied . | . . Relay Couplers Released . | . . Fabnet Peak Effective % . | . . Robots Rewired . | . . Allies Hacked . | . . Hacks Repelled . | . . Allies | -11 -10 -------- Run | Yrd Mat Total Allies . | . . Largest Group . | . . Highest-Rated Group . | . . Highest-Rated Ally . | . . Total Orders . | . . Ally Attacks . | . . Total Damage . | . . Kills . | . . Allies Corrupted . | . . Allies Melted . | . . Intel | -11 -10 ------- Run | Yrd Mat Active Infowar (turns) 581 | . 581 Sensors 383 | . 383 Terrain 198 | . 198 Robot Analysis Total . | . . Derelict Logs Recovered . | . . Drone Launches . | . . Drone Recoveries . | . . Exploration | -11 -10 ------------- Run | Yrd Mat Turns Passed 1010 | 151 859 Spaces Moved 488 | 122 366 Core 210 | 7 203 Treads . | . . Legs . | . . Wheels 278 | 115 163 Hover . | . . Flight . | . . Fastest Speed 50 | 50 90 Average Speed 115 | 88 124 Slowest Speed 150 | 150 150 Overloaded Moves . | . . Propulsion Burnouts . | . . Robots Hopped . | . . Potential Cave-ins . | . . Cave-ins Triggered . | . . Exploration Rate (%) 20 | 6 34 Regions Visited 1 Branch Regions . Pre-discovered Areas . | . . Known Exits Taken . | . . Unknown Exits Taken 1 | 1 . Scrap Searched . | . . Spaces Dug 12 | . 12 Terrain Destroyed 14 | . 14 Melee 8 | . 8 Projectile 6 | . 6 AOE . | . . Terrain Rammed . | . . Walls Destroyed . | . . Machines Disabled . | . . Actions | -11 -10 --------- Run | Yrd Mat Total 794 | 149 645 Wait 216 | 8 208 Move 487 | 121 366 Hop . | . . Pick Up 8 | 7 1 Fast Attach 7 | 6 1 Attach 2 | . 2 Detach . | . . Swap 4 | 1 3 Drop 1 | . 1 Fire 31 | 6 25 Melee 38 | . 38 Ram . | . . Kick . | . . Crush . | . . Escape Stasis . | . . Rewire . | . . Trap . | . . Miscellaneous . | . . Route ------- -11/Scrapyard -10/Materials (discovered 1 exit: [*Sub]) History --------- Turn | Location | Event 31 | -11/Scrapyard | Discovered new exit (range 16) 152 | -11/Scrapyard | Entered Materials 308 | -10/Materials | Build established: Mutant 423 | -10/Materials | Discovered new exit (range 5) 979 | -10/Materials | Core integrity fell below 50% 995 | -10/Materials | Core integrity fell below 20% 1011 | -10/Materials | Destroyed by G-34 Mercenary with Small Laser Last Messages --------------- OFTIAWY349: Grenade Launcher Downloaded coordinate data. 00772_ O-16 Technician: "IFF HANDSHAKE FAILED. SECURING TERMINAL." 00778_ ALERT: Hostiles spotted, dispatching reinforcements to Terminal M007. 00783_ Connecting with Terminal... >>Recall(Investigation) Establishing remote squad link... No tasked investigation squads found. 00783_ K-01 Serf cleans the Fusion Modulator. 00831_ Sneak attack on O-16 Technician. 00831_ O-16 Technician Lgt. Ion Engine ripped off. [Achievement: Part-time Excavator] 00970_ G-34 Mercenary destroyed. 00982_ Lgt. Assault Rifle destroyed. 01000_ S-10 Pest destroyed. 01003_ Sensor Array destroyed. Map ----- +----------------------------------------------------+ | ??????????????????????????????????????????????? | | ??????????????????????????????????????????????? | | ??????????????????????????????????????????????? | | ??????????????????????????????????????????????? | | ?????????????????????????????? ?????????????? | | ?????????????????????????????? ?????????????? | | ?????????????????????????????? ?????????????? | | ?????????????????????????????? ?????????????? | | ????????????!????????????????? ?????????????? | | ?????????????????????????????? #????????????? | | ??????????????????????????????# #????????????? | | ??????????????????????????????# #????????????? | | ??????????????????????????????+ +????????????? | | ??????????????????????????????# #????????????? | | ??????????????????????????##??# #????????????? | | ????????????? #?????????"""?# ###########??? | | ????????????# #?????????""" # ## #??? | | ??????????### #???"???????" / ## #??? | | #?????????### # ????????????# ## #??? | | #?????#??#??# #? ? ?????????# "" #??? | | ###??????#??# #?????????????# ##= #??? | | ##????????# #???########### ##%= #??? | | #???#??#??# #???# ## ##![ #??? | | #??######## #???# """## ## #??? | | #?##!!!!### #???# | """##* ## #??? | | ###! !## #???# @"""%=%= ##+#######??? | | #?# ## #??## sg *+ = #??????? | | ### ## ##??# """# T ^ #??????? | | #???# """# ##+#######??? | | ##?## """## ## T #??? | | % % ###?# ## ## """" #??? | | ##+###= ############### ## """" #??? | | # + """" #??? | | # ## #??? | | # ###################+###### #??? | | """ #####???###?##?????# T # #??? | | """ #???#?#??#????????## ] #// #??? | | """ ##?#????#??????????# #// #??? | | ##?#??#?##???#???#?# ##########??? | | #######?#??#??#?????????###########???????????? | | | | | | | | | | | | | | | | | | | | | +----------------------------------------------------+ Best States ------------- Heat Dissipation 25 Energy Generation 10 Energy Capacity 125 Matter Stores 300 Matter Capacity 300 Sight Range 16 Robot Scan Range 14 Terrain Scan Range 16 Terrain Scan Density 10 Evasion (%) 42 Item Schematics ----------------- None Robot Schematics ------------------ None Fabricated ------------ Nothing Repaired ---------- Nothing Studied --------- None Alien Tech Used ----------------- None Achievements -------------- Part-time Excavator Challenges ------------ None Game ------ Seed FlakTeslaVibroblade Manual? 0 Play Time 00:10:40 Cumulative 20.8 hours Start 2025.11.18 @ 21:56:47 End 2025.11.18 @ 22:07:23 Sessions 1 Manual Loads 0 Difficulty Rogue Special Mode None Game No. 22 Rogue 22 Adventurer 0 Explorer 0 Win Type - Total 0 Types 0/0/0/0/0/0/0/0/0/0 Lore% 11 Gallery% 14 Achievement% 14 Wizard Run 0 Options --------- Layout 1 ASCII 0 Keyboard 0 Movement Arrows Keybinds 0 Fullscreen 2 Font 48/Smallcaps Map View 50x35 Zoom Use 0% Tactical HUD 1 Map Filters NONE Filters NONE Steam 1 RUN: 1d2dccfe-4672-4cb5-a7f9-40d253a3f676